bitfinex/quotes_SOLUSD_20220210
["timestamp","ask_amount","ask_price","bid_price","bid_amount"]
[1644501371279,27.5537,108.43,108.32,41.05425091]
[1644501371879,10.67,108.43,108.33,4.7008]
[1644501372084,10.67,108.43,108.34,48.4610171]
[1644501372282,10.67,108.43,108.34,48.7110171]
[1644501372683,10.67,108.43,108.33,0.0878]
[1644501372887,32.70237705,108.43,108.33,0.0878]
[1644501373086,2.968,108.42,108.33,0.0878]
[1644501373289,10.67,108.41,108.33,0.0878]
[1644501373486,12.90122154,108.41,108.33,0.0878]
[1644501373685,5.16322154,108.4,108.33,0.0878]
[1644501373884,10.67,108.39,108.33,0.0878]
[1644501374084,16.7636,108.38,108.33,0.0878]
[1644501374285,18.99482154,108.38,108.33,0.0878]
[1644501374694,2.23122154,108.37,108.33,0.0878]
[1644501374888,2.23122154,108.37,108.29,0.0878]
[1644501375086,3.013,108.44,108.3,4.615]
[1644501375087,13.8452,108.42,108.3,4.615]
[1644501375287,10.67,108.41,108.31,38.08009151]
[1644501376087,24.67241341,108.44,108.31,38.08009151]
[1644501376289,13.683,108.44,108.33,36.14872907]
[1644501376487,3.013,108.44,108.35,43.73351418]
[1644501376893,3.013,108.44,108.36,4.612]
[1644501377090,24.82901148,108.47,108.37,47.33471757]
[1644501377293,0.02421148,108.48,108.38,135.611]
[1644501377495,0.00421148,108.48,108.4,0.31738799]
[1644501377689,82.8458,108.55,108.4,0.31738799]
[1644501377690,24.4994,108.55,108.42,48.22535452]
[1644501377892,0.02419519,108.54,108.44,40.13921827]
[1644501378090,11.16419519,108.56,108.46,41.086325]
[1644501378291,0.02419519,108.55,108.46,47.336325]
[1644501378496,11.14,108.56,108.47,4.608]
[1644501378692,11.14,108.56,108.48,39.87232211]
[1644501379090,2.23122154,108.55,108.48,39.87232211]
[1644501379492,11.14,108.56,108.48,40.12232211]
[1644501380892,11.07982,108.56,108.48,40.12232211]
[1644501381294,13.56104154,108.56,108.49,0.0878]
[1644501382096,21.37805495,108.56,108.49,0.0878]
[1644501382294,13.8303,108.55,108.49,0.0878]
[1644501382497,32.96775261,108.56,108.49,0.0878]
[1644501382695,11.07982,108.56,108.49,0.0878]
[1644501383696,11.32982,108.56,108.49,0.0878]
[1644501383896,13.56104154,108.56,108.49,0.0878]
[1644501384296,13.56104154,108.56,108.47,0.0878]
[1644501384899,2.48122154,108.56,108.47,0.0878]
[1644501385399,10.29823495,108.56,108.47,0.0878]
[1644501386318,24.4993,108.55,108.47,0.0878]
[1644501387218,26.73052154,108.55,108.47,0.0878]
[1644501387424,26.73052154,108.55,108.43,0.0878]
[1644501387624,24.52349519,108.55,108.43,0.0878]
[1644501388120,10.69419519,108.55,108.44,4.608]
[1644501388320,10.69419519,108.55,108.45,34.33604496]
[1644501388519,10.67,108.55,108.45,34.33604496]
[1644501388720,12.90122154,108.55,108.45,34.33604496]
[1644501389321,13.15122154,108.55,108.45,34.58604496]
[1644501389521,13.15122154,108.55,108.45,34.33604496]
[1644501389721,26.97982154,108.55,108.44,4.608]
[1644501390123,46.63653261,108.55,108.43,0.0878]
[1644501390426,0.30216066,108.53,108.37,4.608]
[1644501390624,0.31784314,108.5,108.39,0.0878]
[1644501390822,10.67,108.49,108.39,0.0878]
[1644501391023,24.72656828,108.49,108.39,0.0878]
[1644501391426,14.05656828,108.48,108.39,0.0878]
[1644501391627,10.67,108.47,108.39,0.0878]
[1644501391824,22.49534674,108.47,108.39,0.0878]
[1644501392026,11.82534674,108.46,108.39,0.0878]
[1644501392424,10.67,108.47,108.39,0.0878]
[1644501392931,13.841,108.46,108.39,0.0878]
[1644501393125,10.67,108.45,108.39,0.0878]
[1644501393525,24.00217939,108.45,108.39,0.0878]
[1644501393925,11.10095785,108.44,108.39,0.0878]
[1644501394525,11.35095785,108.44,108.39,0.0878]
[1644501394725,25.19355785,108.44,108.39,0.0878]
[1644501395127,11.35095785,108.44,108.39,0.0878]
[1644501395325,0.25,108.44,108.39,0.0878]
[1644501395529,0.25,108.44,108.33,0.0878]
[1644501395725,21.77095785,108.47,108.33,0.0878]
[1644501395924,13.8391,108.46,108.33,0.0878]
[1644501396125,2.23122154,108.43,108.33,0.0878]
[1644501396324,21.77095785,108.45,108.33,0.0878]
[1644501397526,21.77095785,108.45,108.34,4.612]
[1644501397827,13.8431,108.43,108.35,47.15918199]
[1644501398226,13.8431,108.43,108.35,47.24698199]
[1644501398627,10.67,108.45,108.35,47.49698199]
[1644501398828,47.3192,108.49,108.37,40.92562378]
[1644501399028,49.55042154,108.49,108.37,40.92562378]
[1644501399328,13.8373,108.47,108.37,41.17562378]
[1644501399632,23.3802,108.49,108.37,41.17562378]
[1644501399830,0.02419519,108.5,108.37,57.84562378]
[1644501400029,0.02419519,108.55,108.39,37.09483692]
[1644501400232,0.02419519,108.5,108.4,10.67]
[1644501400430,13.85279519,108.54,108.42,13.8275]
[1644501400630,13.85279519,108.54,108.43,41.22933187]
[1644501400829,13.85279519,108.54,108.43,41.47933187]
[1644501401327,16.08401673,108.54,108.44,0.0878]
[1644501401530,13.85279519,108.54,108.44,0.0878]
[1644501402328,16.08401673,108.54,108.44,0.0878]
[1644501403331,16.33401673,108.54,108.44,0.0878]
[1644501403729,16.08401673,108.54,108.44,0.0878]
[1644501404229,38.65438105,108.54,108.44,0.0878]
[1644501404830,38.65438105,108.54,108.37,10.608]
[1644501405030,0.02419519,108.53,108.42,0.0878]
[1644501405230,13.8336,108.5,108.42,0.0878]
[1644501405833,16.06482154,108.5,108.42,0.0878]
[1644501406030,26.73482154,108.5,108.42,0.0878]
[1644501407630,26.73482154,108.5,108.39,0.0878]
[1644501407831,26.98482154,108.5,108.39,0.0878]
[1644501408033,14.0836,108.5,108.39,0.0878]
[1644501408230,13.8336,108.5,108.4,4.61]
[1644501408439,13.8336,108.5,108.41,45.07378874]
[1644501408844,13.8336,108.5,108.41,45.32378874]
[1644501409031,13.8336,108.5,108.4,4.61]
[1644501409231,13.8336,108.5,108.39,0.0878]
[1644501409232,16.06482154,108.5,108.39,0.0878]
[1644501409431,10.67,108.49,108.39,0.0878]
[1644501409632,13.8357,108.48,108.39,0.0878]
[1644501409832,14.0857,108.48,108.39,0.0878]
[1644501410633,14.0857,108.48,108.36,0.0878]
[1644501411634,13.25780971,108.48,108.38,13.8337]
[1644501412037,2.23122154,108.47,108.36,0.0878]
[1644501412237,13.8385,108.45,108.36,0.0878]
[1644501412436,24.5085,108.45,108.36,0.0878]
[1644501412637,26.73972154,108.45,108.36,0.0878]
[1644501413641,24.5085,108.45,108.34,0.0878]
[1644501413838,24.5085,108.45,108.35,45.69348839]
[1644501414637,24.5085,108.45,108.34,18.5387]
[1644501414938,24.5085,108.45,108.34,0.0878]
[1644501415337,0.309586,108.43,108.34,0.0878]
[1644501415537,13.8462,108.41,108.34,0.0878]
[1644501415737,24.5162,108.41,108.34,0.0878]
[1644501415937,24.7662,108.41,108.34,0.0878]
[1644501416938,24.7662,108.41,108.31,0.0878]
[1644501417337,24.7662,108.41,108.31,35.49515706]
[1644501417537,24.5162,108.41,108.31,35.49515706]
[1644501417738,24.5162,108.41,108.31,49.58835706]
[1644501418140,24.5162,108.41,108.32,4.614]
[1644501418339,13.8462,108.41,108.33,39.93848843]
[1644501420342,13.8462,108.41,108.34,0.0878]
[1644501421144,24.7662,108.41,108.34,0.0878]
[1644501422342,24.5162,108.41,108.34,0.0878]
[1644501423847,24.5162,108.41,108.33,0.0878]
[1644501424446,13.8409,108.43,108.33,0.0878]
[1644501424646,13.8409,108.43,108.34,4.613]
[1644501424846,71.2263,108.44,108.35,42.37150215]
[1644501425045,71.2263,108.44,108.36,4.612]
[1644501425446,85.0652,108.44,108.36,4.612]
[1644501425646,37.294,108.44,108.36,4.612]
[1644501426653,37.294,108.44,108.25,76.33502604]
[1644501426654,0.31766869,108.4,108.25,76.33502604]
[1644501426849,0.31766869,108.4,108.22,9.62410548]
[1644501426850,0.30711137,108.36,108.22,9.62410548]
[1644501427050,10.97711137,108.36,108.22,9.62410548]
[1644501427451,24.99074114,108.36,108.25,39.65272615]
[1644501427660,24.99074114,108.36,108.27,44.21941629]
[1644501427851,13.8507,108.35,108.27,44.21941629]
[1644501428052,10.67,108.34,108.27,5.35525931]
[1644501428856,24.5236,108.34,108.27,5.35525931]
[1644501429156,10.67,108.34,108.28,34.60021864]
[1644501429353,10.67,108.34,108.27,5.60525931]
[1644501429555,10.67,108.34,108.27,5.35525931]
[1644501429753,10.67,108.34,108.27,5.60525931]
[1644501430162,10.67,108.34,108.27,5.35525931]
[1644501430555,10.67,108.34,108.27,41.17421244]
[1644501430756,10.67,108.34,108.27,5.35525931]
[1644501430757,10.92,108.34,108.27,5.35525931]
[1644501431856,10.92,108.34,108.27,48.8428783]
[1644501432057,10.67,108.34,108.27,48.8428783]
[1644501432255,10.67,108.34,108.27,49.0928783]
[1644501432657,10.67,108.34,108.27,48.8428783]
[1644501433059,10.67,108.34,108.27,5.35525931]
[1644501434060,10.92,108.34,108.27,5.35525931]
[1644501434265,24.7743,108.34,108.28,41.4156766]
[1644501434458,10.92,108.34,108.28,41.4156766]
[1644501434862,10.67,108.34,108.28,41.6656766]
[1644501435081,47.42,108.38,108.28,41.6656766]
[1644501435679,47.67,108.38,108.28,41.6656766]
[1644501435878,10.67,108.37,108.28,0.25]
[1644501436080,24.5198,108.37,108.28,0.25]
[1644501436280,38.53342977,108.37,108.27,5.35525931]
[1644501436882,12.07705826,108.36,108.28,47.40485846]
[1644501437080,10.67,108.35,108.28,47.40485846]
[1644501437281,10.67,108.35,108.28,0.25]
[1644501437684,10.67,108.35,108.27,5.35525931]
[1644501437884,22.74705826,108.35,108.27,5.35525931]
[1644501438282,22.74705826,108.35,108.27,5.60525931]
[1644501438480,22.99705826,108.35,108.28,34.90910626]
[1644501438880,36.84855826,108.35,108.28,35.15910626]
[1644501439081,36.84855826,108.35,108.28,34.90910626]
[1644501439483,36.84855826,108.35,108.27,5.35525931]
[1644501439882,36.59855826,108.35,108.27,5.35525931]
[1644501440082,12.07705826,108.35,108.27,19.45535931]
[1644501440482,12.07705826,108.35,108.27,60.35083415]
[1644501441082,25.92845826,108.35,108.27,60.35083415]
[1644501441283,25.92845826,108.35,108.27,5.35525931]
[1644501441487,36.59845826,108.35,108.27,5.35525931]
[1644501442687,50.61208803,108.35,108.27,5.35525931]
[1644501443287,52.84330957,108.35,108.27,5.35525931]
[1644501443488,13.87790439,108.34,108.27,5.35525931]
[1644501443688,10.67,108.33,108.27,5.35525931]
[1644501443888,13.8598,108.32,108.27,5.35525931]
[1644501444087,10.67,108.31,108.27,5.35525931]
[1644501444490,21.60081937,108.31,108.27,5.35525931]
[1644501444892,10.93081937,108.3,108.27,0.41722772]
[1644501445090,10.67,108.29,108.16,2.56102604]
[1644501445290,37.50738254,108.29,108.17,4.619]
[1644501445489,11.23302555,108.28,108.17,41.81374715]
[1644501445694,35.91665532,108.28,108.17,41.81374715]
[1644501445893,10.93081937,108.27,108.17,41.81374715]
[1644501446091,13.8641,108.26,108.17,55.67664715]
[1644501447299,13.8641,108.26,108.17,55.92664715]
[1644501448193,13.8641,108.26,108.17,55.67664715]
[1644501448392,13.8641,108.26,108.17,13.8629]
[1644501448596,24.79491937,108.26,108.16,18.4845]
[1644501448794,24.79491937,108.26,108.16,13.8645]
[1644501449495,24.79491937,108.26,108.16,59.0007564]
[1644501449696,39.20577136,108.26,108.16,45.3862564]
[1644501449899,49.87577136,108.26,108.16,45.3862564]
[1644501450298,49.87577136,108.26,108.12,4.62]
[1644501450497,97.72677136,108.26,108.12,4.62]
[1644501450697,98.03767024,108.26,108.12,4.62]
[1644501450902,13.87790439,108.25,108.12,4.62]
[1644501451099,13.8706,108.22,108.12,4.62]
[1644501451299,24.5406,108.22,108.12,40.35996637]
[1644501451498,10.93081937,108.21,108.12,40.35996637]
[1644501451696,10.93081937,108.21,108.12,35.73996637]
[1644501452097,13.8723,108.19,108.12,35.73996637]
[1644501452299,10.67,108.2,108.12,35.98996637]
[1644501453002,10.93081937,108.21,108.12,35.98996637]
[1644501453200,13.8678,108.22,108.13,4.622]
[1644501453402,13.8678,108.22,108.14,44.16925717]
[1644501453601,24.5378,108.22,108.14,44.16925717]
[1644501453801,35.46861937,108.22,108.12,4.621]
[1644501454004,35.46861937,108.22,108.09,4.622]
[1644501454403,35.46861937,108.22,108.09,10.622]
[1644501454803,35.71861937,108.22,108.13,39.62097324]
[1644501455007,50.12947136,108.22,108.13,39.62097324]
[1644501455804,49.87947136,108.22,108.13,39.62097324]
[1644501457303,13.8656,108.24,108.13,53.73887324]
[1644501457504,95.21225199,108.25,108.15,41.97115137]
[1644501457505,14.41085199,108.25,108.15,41.97115137]
[1644501457707,57.6077,108.3,108.16,4.621]
[1644501457904,14.41085199,108.29,108.17,40.95986604]
[1644501458305,14.41085199,108.29,108.17,41.20986604]
[1644501458306,25.08085199,108.29,108.17,41.20986604]
[1644501458503,35.22228247,108.29,108.17,41.20986604]
[1644501458703,14.41085199,108.28,108.17,41.20986604]
[1644501458906,14.41085199,108.28,108.18,4.62]
[1644501459104,38.41318247,108.28,108.19,40.84757566]
[1644501459304,38.41318247,108.28,108.19,41.09757566]
[1644501459505,14.41085199,108.27,108.15,4.619]
[1644501459704,14.41085199,108.27,108.14,4.7278]
[1644501459905,20.81143048,108.26,108.14,0.1078]
[1644501460307,24.55228247,108.25,108.14,0.1078]
[1644501460505,35.22228247,108.25,108.14,0.1078]
[1644501460704,49.08658247,108.25,108.14,13.9735]
[1644501460906,24.48016935,108.24,108.14,0.0878]
[1644501461107,10.67,108.23,108.14,0.0878]
[1644501461305,35.15016935,108.23,108.14,0.0878]
[1644501461508,10.14143048,108.22,108.14,0.0878]
[1644501461706,13.8692,108.21,108.14,0.0878]
[1644501462708,34.68063048,108.21,108.14,0.0878]
[1644501462913,49.01936935,108.21,108.14,0.0878]
[1644501463310,49.01936935,108.21,108.1,19.9593]
[1644501463510,49.01936935,108.21,108.1,13.9593]
[1644501463711,49.01936935,108.21,108.11,37.66334387]
[1644501463912,49.01936935,108.21,108.1,0.0878]
[1644501464609,34.68063048,108.21,108.1,0.0878]
[1644501466914,2.23122154,108.2,108.1,0.0878]
[1644501467115,13.877,108.17,108.1,0.0878]
[1644501467314,14.127,108.17,108.1,0.0878]
[1644501467613,2.23122154,108.16,108.1,0.0878]
[1644501467814,10.67,108.17,108.1,0.0878]
[1644501468213,13.8737,108.17,108.1,0.0878]
[1644501468412,16.10492154,108.17,108.1,0.0878]
[1644501468613,13.8737,108.17,108.1,0.0878]
[1644501468845,10.67,108.2,108.11,82.0]
[1644501469021,47.7679,108.25,108.12,52.17437383]
[1644501469316,47.7679,108.25,108.12,47.80237383]
[1644501469317,13.8707,108.2,108.12,47.80237383]
[1644501469514,47.7679,108.25,108.14,35.78970265]
[1644501469915,2.23122154,108.24,108.14,35.78970265]
[1644501470518,16.2724133,108.24,108.13,0.0878]
[1644501470821,13.867,108.23,108.13,0.0878]
[1644501471016,26.76822154,108.23,108.13,0.0878]
[1644501471215,16.2724133,108.22,108.13,0.0878]
[1644501471419,10.67,108.21,108.13,0.0878]
[1644501471619,26.9424133,108.21,108.13,0.0878]
[1644501471816,12.90122154,108.21,108.13,0.0878]
[1644501472017,0.32168991,108.19,108.13,0.0878]
[1644501472218,10.67,108.18,108.13,0.0878]
[1644501472419,37.56166992,108.18,108.13,0.0878]
[1644501472618,17.2421084,108.17,108.13,0.0878]
[1644501472818,10.67,108.16,108.13,0.0878]
[1644501473021,12.90122154,108.16,108.13,0.0878]
[1644501473619,2.23122154,108.15,108.05,0.0878]
[1644501473821,2.23122154,108.15,108.07,42.55199547]
[1644501474021,10.67,108.18,108.07,42.55199547]
[1644501474222,10.67,108.21,108.08,4.624]
[1644501474420,10.67,108.21,108.09,44.12598349]
[1644501474621,2.23122154,108.2,108.09,44.12598349]
[1644501474822,10.67,108.19,108.09,44.12598349]
[1644501475021,13.8727,108.18,108.09,44.12598349]
[1644501475220,16.10392154,108.18,108.09,44.12598349]
[1644501475422,16.10392154,108.18,108.09,44.37598349]
[1644501475423,13.8727,108.18,108.09,44.37598349]
[1644501475623,13.8727,108.18,108.08,1.30225522]
[1644501475821,16.10392154,108.18,108.07,1.30225522]
[1644501476022,16.10392154,108.18,108.06,1.30225522]
[1644501476431,13.8727,108.18,108.07,13.8747]
[1644501476621,13.8727,108.18,108.08,40.94263593]
[1644501476823,14.1227,108.18,108.09,4.624]
[1644501477023,14.1227,108.18,108.1,47.17286641]
[1644501477425,13.8727,108.18,108.1,61.29436641]
[1644501478028,13.8727,108.18,108.1,47.17286641]
[1644501478231,16.10392154,108.18,108.1,47.17286641]
[1644501478429,16.10392154,108.18,108.07,1.39005522]
[1644501479030,10.67,108.17,108.07,1.39005522]
[1644501479230,13.8783,108.14,108.07,0.0878]
[1644501479831,13.8783,108.14,108.06,38.90886798]
[1644501480030,13.8783,108.14,108.06,0.0878]
[1644501480230,16.10952154,108.14,108.06,0.0878]
[1644501480430,13.8783,108.14,108.06,0.0878]
[1644501480833,26.77952154,108.14,108.06,0.0878]
[1644501483339,0.32229588,108.13,108.06,0.0878]
[1644501483534,13.8841,108.11,108.06,0.0878]
[1644501483733,10.67,108.1,108.06,0.0878]
[1644501483959,29.49711639,108.1,108.06,0.0878]
[1644501484155,29.49711639,108.1,108.02,1.30225522]
[1644501484156,29.49711639,108.1,108.03,0.0878]
[1644501484557,13.8859,108.09,108.03,0.0878]
[1644501484757,24.5559,108.09,108.03,0.0878]
[1644501486366,26.78712154,108.09,108.03,0.0878]
[1644501486863,24.5559,108.09,108.03,0.0878]
[1644501487863,26.78712154,108.09,108.03,0.0878]
[1644501488263,27.03712154,108.09,108.03,0.0878]
[1644501488465,24.8059,108.09,108.02,36.65178799]
[1644501489063,24.5559,108.09,108.02,36.65178799]
[1644501489463,24.5559,108.09,108.02,41.27878799]
[1644501490066,90.0638,108.21,108.03,131.0]
[1644501490266,14.166,108.21,108.04,51.8888072]
[1644501490467,23.2222,108.22,108.04,63.86106242]
[1644501490667,13.8719,108.2,108.04,72.06863149]
[1644501490865,10.67,108.25,108.07,46.72339819]
[1644501491069,499.87214926,108.27,108.06,1.30225522]
[1644501491070,499.87214926,108.27,108.13,13.8675]
[1644501491263,13.03986833,108.29,108.14,48.65816943]
[1644501491472,13.03986833,108.29,108.14,50.6157385]
[1644501491668,13.8604,108.3,108.14,67.5357385]
[1644501491864,22.94736863,108.32,108.15,7.87982429]
[1644501491865,2.23122154,108.32,108.15,7.87982429]
[1644501492064,10.67,108.34,108.16,48.1431669]
[1644501492266,10.67,108.34,108.17,4.618]
[1644501492464,2.23122154,108.36,108.18,58.08506829]
[1644501492864,2.23122154,108.36,108.18,66.29263736]
[1644501492865,12.2480176,108.33,108.18,66.29263736]
[1644501493064,22.9180176,108.33,108.19,4.7058]
[1644501493263,2.23122154,108.32,108.2,37.651731]
[1644501493464,14.47923914,108.32,108.2,37.651731]
[1644501493769,2.23122154,108.31,108.2,37.651731]
[1644501494163,2.23122154,108.31,108.2,37.901731]
[1644501494464,2.23122154,108.31,108.19,13.9463]
[1644501494665,47.11835123,108.31,108.19,0.0878]
[1644501495067,2.23122154,108.3,108.19,0.0878]
[1644501495265,10.67,108.29,108.19,0.0878]
[1644501495464,18.77961209,108.29,108.19,0.0878]
[1644501495666,35.12273363,108.29,108.19,0.0878]
[1644501495867,34.87273363,108.29,108.19,42.4826353]
[1644501496066,34.87273363,108.29,108.19,42.3948353]
[1644501497068,0.31738775,108.26,108.18,4.7068]
[1644501497269,13.8666,108.25,108.18,4.7068]
[1644501497471,26.76782154,108.25,108.18,4.7068]
[1644501497670,2.23122154,108.24,108.18,4.7068]
[1644501497970,10.67,108.23,108.18,4.7068]
[1644501498170,10.67,108.23,108.18,0.0878]
[1644501498469,12.90122154,108.23,108.18,0.0878]
[1644501498669,26.77002154,108.23,108.18,0.0878]
[1644501498972,10.67,108.23,108.18,0.0878]
[1644501499370,10.67,108.23,108.1,0.0878]
[1644501499571,10.67,108.23,108.1,45.65611994]
[1644501499770,10.67,108.23,108.1,53.86368901]
[1644501500072,10.67,108.23,108.1,47.86368901]
[1644501500269,10.67,108.23,108.1,53.86368901]
[1644501500670,10.67,108.23,108.12,35.91828861]
[1644501500869,10.67,108.23,108.14,46.45762032]
[1644501501070,10.67,108.23,108.16,41.23942023]
[1644501501272,10.67,108.23,108.16,41.48942023]
[1644501502072,10.67,108.23,108.16,41.23942023]
[1644501502273,13.8675,108.24,108.16,41.48942023]
[1644501502473,24.534,108.26,108.17,0.0878]
[1644501502675,0.30393356,108.25,108.17,0.0878]
[1644501502873,13.864,108.26,108.19,44.87214035]
[1644501503075,10.17,108.27,108.19,44.87214035]
[1644501503273,10.67,108.3,108.19,44.87214035]
[1644501503473,13.8542,108.34,108.2,4.619]
[1644501503676,13.8542,108.34,108.21,46.64968045]
[1644501503877,13.8542,108.34,108.23,36.74397444]
[1644501504275,13.8542,108.34,108.23,36.99397444]
[1644501504875,16.08542154,108.34,108.23,36.74397444]
[1644501505476,13.8542,108.34,108.25,48.10092481]
[1644501505878,16.08352154,108.36,108.25,48.35092481]
[1644501506077,10.67,108.38,108.27,47.44851654]
[1644501506278,10.67,108.38,108.27,47.69851654]
[1644501506479,7.64088987,108.43,108.28,87.72]
[1644501506683,0.02419519,108.44,108.29,40.34193016]
[1644501506879,12.27221279,108.46,108.3,10.67]
[1644501507080,0.02419519,108.43,108.31,45.32774091]
[1644501507281,13.8436,108.44,108.31,45.32774091]
[1644501507579,26.11581279,108.44,108.31,45.32774091]
[1644501507779,2.23122154,108.43,108.31,45.32774091]
[1644501507980,16.94487668,108.43,108.31,45.32774091]
[1644501508180,25.38365514,108.43,108.31,45.32774091]
[1644501508379,27.61487668,108.43,108.31,45.32774091]
[1644501508580,39.86289428,108.43,108.31,45.32774091]
[1644501508779,13.8466,108.42,108.32,0.0878]
[1644501509184,41.46147668,108.42,108.32,0.0878]
[1644501509580,38.99583914,108.42,108.32,0.0878]
[1644501509781,13.8538,108.39,108.32,0.0878]
[1644501509982,0.30047836,108.37,108.32,0.0078]
[1644501510200,0.75047836,108.37,108.32,0.0078]
[1644501510381,0.30124677,108.34,108.17,34.72645233]
[1644501510582,10.67,108.33,108.17,34.72645233]
[1644501510781,25.14923914,108.33,108.17,34.72645233]
[1644501510984,13.8634,108.3,108.19,35.90030699]
[1644501511583,59.1484176,108.36,108.19,38.10804717]
[1644501511786,10.67,108.35,108.19,44.10804717]
[1644501511984,10.67,108.35,108.19,54.77804717]
[1644501512784,24.5243,108.35,108.19,52.82030699]
[1644501512984,11.98800202,108.34,108.19,42.15030699]
[1644501513183,10.67,108.33,108.19,42.15030699]
[1644501513385,12.90122154,108.33,108.19,36.15030699]
[1644501513583,10.67,108.33,108.19,36.15030699]
[1644501513784,13.857,108.32,108.21,40.66772542]
[1644501513984,46.1911,108.35,108.21,40.66772542]
[1644501514185,10.67,108.36,108.23,35.59210043]
[1644501514386,10.67,108.36,108.23,35.84210043]
[1644501514585,12.90122154,108.36,108.23,35.59210043]
[1644501514787,25.14923914,108.36,108.23,35.59210043]
[1644501515085,14.71365514,108.35,108.23,35.59210043]
[1644501515286,10.67,108.34,108.23,35.59210043]
[1644501515687,24.7746,108.34,108.23,35.59210043]
[1644501516891,27.00582154,108.34,108.23,35.59210043]
[1644501518987,26.75582154,108.34,108.23,35.59210043]
[1644501519391,26.75582154,108.34,108.23,35.84210043]
[1644501519588,26.75582154,108.34,108.23,35.59210043]
[1644501520594,24.5246,108.34,108.23,35.84210043]
[1644501520792,24.5246,108.34,108.24,4.617]
[1644501520993,24.5246,108.34,108.25,44.31141796]
[1644501521192,13.8546,108.34,108.25,44.31141796]
[1644501521592,16.08582154,108.34,108.25,44.31141796]
[1644501521897,26.75582154,108.34,108.25,44.31141796]
[1644501522792,27.00582154,108.34,108.25,44.31141796]
[1644501522992,24.7746,108.34,108.25,44.31141796]
[1644501523493,24.7746,108.34,108.21,4.617]
[1644501523693,2.23122154,108.33,108.21,4.617]
[1644501523894,13.8587,108.31,108.19,4.618]
[1644501524195,24.5287,108.31,108.18,4.618]
[1644501524595,2.23122154,108.3,108.18,42.17793341]
[1644501524895,10.67,108.29,108.18,37.55993341]
[1644501525717,13.8621,108.28,108.18,37.80993341]
[1644501526316,14.1121,108.28,108.18,37.80993341]
[1644501527317,13.8621,108.28,108.18,37.80993341]
[1644501528522,24.5321,108.28,108.15,4.619]
[1644501528718,24.5321,108.28,108.14,15.16615522]
[1644501528719,13.8658,108.24,108.13,104.85595522]
[1644501528921,24.5358,108.24,108.13,1.30225522]
[1644501529121,24.5358,108.24,108.11,50.00795522]
[1644501529122,2.23122154,108.23,108.11,50.00795522]
[1644501529320,2.23122154,108.23,108.1,1.30225522]
[1644501529321,10.67,108.22,108.1,1.30225522]
[1644501529626,10.67,108.22,108.1,45.79182324]
[1644501529823,2.23122154,108.21,108.1,45.79182324]
[1644501530022,13.8734,108.19,108.1,45.79182324]
[1644501530223,10.67,108.23,108.12,47.37308612]
[1644501530923,56.8947,108.26,108.14,37.49048667]
[1644501531220,13.865,108.25,108.14,37.49048667]
[1644501531424,13.865,108.25,108.16,37.27829239]
[1644501531721,24.535,108.25,108.13,4.62]
[1644501531921,2.23122154,108.24,108.11,1.30225522]
[1644501532124,46.2299,108.24,108.12,4.622]
[1644501532421,10.67,108.23,108.1,5.92325522]
[1644501532621,10.67,108.23,108.09,5.92425522]
[1644501532821,13.869,108.21,108.1,60.65267711]
[1644501533020,13.869,108.21,108.1,46.78357711]
[1644501533224,24.539,108.21,108.1,46.78357711]
[1644501533925,24.539,108.21,108.1,47.03357711]
[1644501534124,24.539,108.21,108.12,40.77499432]
[1644501534327,24.539,108.21,108.12,41.02499432]
[1644501534726,24.539,108.21,108.12,40.77499432]
[1644501535027,24.539,108.21,108.11,4.622]
[1644501535224,24.539,108.21,108.08,4.622]
[1644501535427,26.77022154,108.21,108.08,4.622]
[1644501535623,26.77022154,108.21,108.08,4.872]
[1644501536024,26.77022154,108.21,108.09,39.2473015]
[1644501536424,26.77022154,108.21,108.09,39.4973015]
[1644501537025,27.02022154,108.21,108.09,39.4973015]
[1644501537427,24.789,108.21,108.09,39.4973015]
[1644501538426,24.789,108.21,108.09,39.2473015]
[1644501538627,27.02022154,108.21,108.09,39.2473015]
[1644501540329,24.789,108.21,108.09,39.2473015]
[1644501540628,27.02022154,108.21,108.09,39.2473015]
[1644501541435,27.02022154,108.21,108.07,87.72]